bitfinex/quotes_SOLUSD_20241110
["timestamp","ask_amount","ask_price","bid_price","bid_amount"]
[1731249020790,15.2776,207.99,207.87,33.4272756]
[1731249020999,15.1776,207.99,207.89,28.6372756]
[1731249021512,0.1,208.03,207.89,28.6372756]
[1731249021696,15.1776,208.04,207.89,28.6372756]
[1731249021890,15.1776,208.04,207.93,33.4272756]
[1731249022692,15.1776,208.04,207.98,20.0]
[1731249023091,15.1776,208.04,207.98,24.79]
[1731249023287,15.1776,208.04,207.98,20.0]
[1731249023716,15.1776,208.04,207.93,28.6372756]
[1731249023886,15.1776,208.04,207.95,28.6372756]
[1731249024088,15.1776,208.04,207.92,20.0]
[1731249024089,15.1776,208.04,207.97,20.0]
[1731249026108,15.1776,208.04,207.95,20.0]
[1731249026693,0.1,208.03,207.95,20.0]
[1731249027192,0.1,208.01,207.91,4.79]
[1731249027803,15.1776,208.04,207.91,33.49]
[1731249027997,15.1776,208.04,207.91,33.59]
[1731249028309,15.1776,208.04,207.95,28.7]
[1731249028505,15.1776,208.04,207.98,48.7]
[1731249028692,14.1776,208.04,207.98,48.7]
[1731249028892,6.3975,208.06,207.98,48.7]
[1731249031991,0.1,208.1,207.98,48.7]
[1731249032195,14.1776,208.11,207.98,48.7]
[1731249033107,0.1,208.1,207.98,48.7]
[1731249033409,0.1,208.1,207.91,5.45629498]
[1731249033410,0.1,208.05,207.99,28.7]
[1731249033617,6.1408,208.04,207.99,28.7]
[1731249034195,6.1408,208.04,207.91,28.7]
[1731249034397,6.1408,208.04,207.91,33.49]
[1731249035094,6.1408,208.04,207.93,28.7]
[1731249035296,6.1408,208.04,207.97,28.7]
[1731249035509,6.1408,208.04,207.99,28.7]
[1731249035912,6.1408,208.04,207.93,28.7]
[1731249036108,6.1408,208.04,207.92,24.79]
[1731249036109,6.1408,208.04,207.96,20.0]
[1731249036398,0.1,208.05,207.81,4.79]
[1731249036399,0.1,207.95,207.81,4.79]
[1731249036618,6.1408,207.94,207.82,1.09985289]
[1731249037716,6.1408,207.94,207.85,28.7]
[1731249037919,6.1408,207.94,207.86,28.7]
[1731249038092,6.1408,207.94,207.87,20.0]
[1731249038913,6.1408,207.94,207.82,28.7]
[1731249039121,6.1408,207.94,207.85,20.0]
[1731249039628,0.1,207.93,207.85,48.7]
[1731249040006,6.1408,207.94,207.85,48.7]
[1731249040211,0.1,207.93,207.85,48.7]
[1731249040606,6.1408,207.94,207.85,48.7]
[1731249043426,0.1,207.9,207.77,28.7]
[1731249043999,0.1,207.9,207.77,36.82287903]
[1731249044206,0.1,207.92,207.77,36.82287903]
[1731249044433,0.1,207.9,207.77,36.82287903]
[1731249044730,0.1,207.9,207.83,28.7]
[1731249044908,0.1,207.9,207.84,28.7]
[1731249045416,0.1,207.92,207.84,28.7]
[1731249045901,0.1,207.92,207.85,28.7]
[1731249046106,14.1776,207.93,207.86,28.7]
[1731249046531,14.2776,207.93,207.87,28.7]
[1731249046830,14.1776,207.93,207.87,28.7]
[1731249047031,14.2776,207.93,207.87,28.7]
[1731249047532,14.2776,207.93,207.81,28.7]
[1731249047740,14.1776,207.93,207.83,28.7]
[1731249048231,14.1776,207.93,207.87,28.7]
[1731249048435,0.1,207.91,207.84,20.0]
[1731249049230,0.1,207.89,207.83,28.7]
[1731249049427,0.1,207.89,207.77,28.7]
[1731249050215,0.1,207.89,207.78,20.0]
[1731249050413,0.1,207.89,207.83,28.7]
[1731249050821,0.1,207.91,207.83,28.7]
[1731249051034,0.1,207.89,207.83,28.7]
[1731249051235,0.1,207.91,207.83,28.7]
[1731249051416,0.1,207.91,207.81,28.7]
[1731249051737,0.1,207.91,207.83,28.7]
[1731249052318,14.2776,207.93,207.84,48.7]
[1731249052519,14.1776,207.93,207.84,48.7]
[1731249053032,14.1776,207.93,207.84,56.75892856]
[1731249053219,6.1408,207.94,207.84,56.75892856]
[1731249053542,14.1776,207.98,207.84,72.17082856]
[1731249055143,6.0627,208.0,207.86,0.1]
[1731249055344,6.0627,208.0,207.88,0.1]
[1731249055645,6.0627,208.0,207.97,28.7]
[1731249055823,6.0627,208.0,207.96,20.0]
[1731249056026,6.0627,208.0,207.94,28.7]
[1731249056219,6.0627,208.0,207.95,20.0]
[1731249056424,6.0627,208.0,207.84,23.47082856]
[1731249056742,0.1,207.99,207.85,20.0]
[1731249056943,0.1,207.99,207.86,28.7]
[1731249057238,0.1,207.99,207.88,28.7]
[1731249057441,0.1,207.97,207.88,28.7]
[1731249058223,0.1,207.97,207.85,28.7]
[1731249058437,0.1,207.99,207.85,28.7]
[1731249058638,0.1,207.99,207.86,20.0]
[1731249058836,0.1,207.99,207.91,20.0]
[1731249059239,6.0627,207.92,207.73,15.4119]
[1731249059440,0.1,207.91,207.73,15.5119]
[1731249059639,0.1,207.88,207.73,15.4119]
[1731249059935,0.1,207.89,207.73,15.4119]
[1731249060133,0.1,207.89,207.75,358.15418673]
[1731249060343,0.1,207.86,207.77,28.7]
[1731249061638,0.1,207.86,207.78,20.0]
[1731249062424,14.2776,207.88,207.78,48.7]
[1731249062650,0.1,207.86,207.78,48.7]
[1731249064047,14.1776,207.88,207.78,48.7]
[1731249064254,0.1,207.85,207.78,48.7]
[1731249064545,14.1776,207.88,207.78,48.7]
[1731249064752,0.1,207.85,207.78,48.7]
[1731249065039,14.1776,207.88,207.78,48.7]
[1731249065272,0.1,207.85,207.78,48.7]
[1731249065430,14.1776,207.88,207.78,48.7]
[1731249065753,0.1,207.85,207.75,350.0]
[1731249065928,0.1,207.79,207.75,350.0]
[1731249066334,0.1,207.8,207.75,350.0]
[1731249066523,0.1,207.77,207.75,350.0]
[1731249067445,6.7622,207.77,207.75,350.0]
[1731249068246,11.5753,207.77,207.75,343.3334]
[1731249068455,1.3589,207.76,207.75,336.6668]
[1731249068948,1.3589,207.76,207.75,330.0002]
[1731249069135,1.3589,207.76,207.75,321.6802]
[1731249069336,1.4589,207.76,207.75,320.3213]
[1731249069724,1.3589,207.76,207.75,320.3213]
[1731249071332,1.5589,207.76,207.75,320.3213]
[1731249071847,0.1,207.77,207.75,320.3213]
[1731249072448,0.2,207.77,207.75,320.3213]
[1731249072824,5.0131,207.77,207.75,320.3213]
[1731249073028,0.1,207.76,207.75,320.3213]
[1731249073231,0.1,207.76,207.75,297.08785023]
[1731249073437,44.002374,207.76,207.75,268.50283163]
[1731249073854,58.352374,207.76,207.75,172.31565659]
[1731249074155,0.1,207.76,207.75,172.31565659]
[1731249074727,0.1,207.76,207.75,167.60705659]
[1731249075948,0.93606456,207.76,207.75,167.60705659]
[1731249076955,0.83606456,207.76,207.75,167.60705659]
[1731249077135,0.93606456,207.76,207.75,167.60705659]
[1731249080653,24.83843856,207.76,207.75,158.60705659]
[1731249080859,59.18843856,207.76,207.75,31.25346324]
[1731249081058,59.18843856,207.76,207.75,8.31759307]
[1731249081247,0.1,207.58,207.57,4.8175]
[1731249081954,0.1,207.58,207.57,12.0441]
[1731249082451,0.1,207.58,207.57,11.5441]
[1731249084543,0.1,207.58,207.53,4.8185]
[1731249084544,0.1,207.54,207.52,12.0469]
[1731249084864,1.924822,207.53,207.52,12.0469]
[1731249085035,1.924822,207.53,207.52,16.8657]
[1731249085239,1.924822,207.53,207.52,12.0469]
[1731249085439,0.1,207.48,207.47,12.0496]
[1731249085647,0.1,207.5,207.47,12.0496]
[1731249085960,0.1,207.48,207.47,11.5496]
[1731249086144,0.1,207.5,207.47,11.5496]
[1731249086343,0.1,207.48,207.47,11.5496]
[1731249087460,0.1,207.5,207.41,24.8213]
[1731249087972,0.1,207.48,207.41,24.8213]
[1731249088147,0.1,207.48,207.41,36.8747]
[1731249088845,0.1,207.5,207.41,36.8747]
[1731249089044,0.1,207.45,207.41,16.8747]
[1731249089241,0.1,207.45,207.41,15.8747]
[1731249089454,0.1,207.45,207.35,21.9366]
[1731249090150,0.1,207.45,207.35,50.7566]
[1731249090372,0.1,207.47,207.33,33.6432]
[1731249090538,0.1,207.39,207.33,4.8232]
[1731249091064,1.924822,207.53,207.33,4.8232]
[1731249091065,0.1,207.37,207.33,4.8232]
[1731249091445,0.1,207.37,207.35,4.8227]
[1731249091964,0.1,207.47,207.34,1.10239909]
[1731249091965,0.1,207.39,207.34,1.10239909]
[1731249092142,0.1,207.35,207.34,1.10239909]
[1731249092545,0.1,207.38,207.35,4.8227]
[1731249092838,0.1,207.36,207.35,4.8227]
[1731249093063,0.1,207.38,207.35,4.8227]
[1731249093262,0.1,207.46,207.35,4.8227]
[1731249093263,0.1,207.36,207.35,4.8227]
[1731249093566,0.1,207.37,207.27,28.82]
[1731249093767,0.1,207.34,207.27,28.82]
[1731249093965,0.1,207.39,207.27,28.82]
[1731249094263,0.1,207.35,207.25,28.82]
[1731249094458,0.1,207.37,207.26,48.82]
[1731249094648,0.1,207.39,207.26,48.82]
[1731249094841,0.1,207.36,207.26,48.82]
[1731249095073,4.8207,207.44,207.26,48.82]
[1731249095074,0.1,207.44,207.26,48.82]
[1731249095244,0.1,207.37,207.26,48.82]
[1731249095647,0.1,207.35,207.26,48.82]
[1731249095849,0.1,207.37,207.26,48.82]
[1731249096049,0.1,207.37,207.27,4.8246]
[1731249096270,0.1,207.37,207.3,20.0]
[1731249096453,0.1,207.39,207.3,48.82]
[1731249096654,0.1,207.37,207.3,48.82]
[1731249096859,0.1,207.4,207.3,48.82]
[1731249097665,0.1,207.4,207.31,33.6436]
[1731249098057,0.1,207.43,207.36,20.0]
[1731249098251,1.924822,207.53,207.36,48.82]
[1731249098252,0.1,207.4,207.36,48.82]
[1731249098450,0.1,207.43,207.35,6.5352]
[1731249098771,0.1,207.39,207.35,6.5352]
[1731249099278,0.1,207.36,207.32,28.82]
[1731249099567,0.1,207.39,207.32,28.82]
[1731249099871,0.1,207.39,207.33,4.8232]
[1731249100451,0.1,207.39,207.33,16.8812]
[1731249101456,4.8203,207.46,207.33,16.8812]
[1731249101457,0.1,207.36,207.33,16.8812]
[1731249101773,0.1,207.4,207.33,16.8812]
[1731249101987,0.1,207.36,207.33,16.8812]
[1731249102486,0.1,207.4,207.33,16.8812]
[1731249102772,0.1,207.36,207.33,16.8812]
[1731249102967,0.1,207.36,207.29,20.0]
[1731249104070,0.1,207.36,207.27,28.82]
[1731249104376,0.1,207.29,207.25,4.825]
[1731249104574,0.1,207.27,207.25,4.825]
[1731249104971,0.1,207.27,207.18,21.8001]
[1731249104972,0.1,207.27,207.21,4.826]
[1731249105475,0.1,207.29,207.21,4.826]
[1731249105649,0.1,207.27,207.21,4.826]
[1731249105851,0.1,207.29,207.21,33.646]
[1731249106257,0.1,207.27,207.22,20.0]
[1731249106460,0.1,207.29,207.22,20.0]
[1731249106668,0.1,207.27,207.22,20.0]
[1731249106860,0.1,207.29,207.17,4.8269]
[1731249107171,0.1,207.23,207.17,9.6309]
[1731249107376,0.1,207.25,207.17,9.6309]
[1731249107558,0.1,207.23,207.17,4.8269]
[1731249108359,0.1,207.25,207.17,24.8269]
[1731249108563,0.1,207.25,207.17,24.6769]
[1731249108764,0.1,207.25,207.17,29.4809]
[1731249108979,4.4233,207.33,207.17,29.4809]
[1731249109166,0.1,207.31,207.17,4.6769]
[1731249109477,4.4233,207.33,207.17,4.6769]
[1731249109666,4.6233,207.33,207.17,4.6769]
[1731249109869,4.5233,207.33,207.17,4.6769]
[1731249110057,4.6233,207.33,207.17,4.6769]
[1731249110257,4.5233,207.33,207.17,4.6769]
[1731249110472,0.1,207.35,207.16,28.82]
[1731249110664,0.1,207.35,207.17,33.624]
[1731249110866,0.1,207.33,207.17,33.624]
[1731249111066,0.1,207.35,207.17,33.624]
[1731249111275,0.2,207.33,207.17,33.624]
[1731249111477,4.8234,207.32,207.17,33.624]
[1731249111867,4.8225,207.36,207.19,48.82]
[1731249112070,4.8221,207.38,207.21,28.82]
[1731249112783,4.8221,207.38,207.22,28.82]
[1731249113161,0.1,207.42,207.25,48.82]
[1731249113358,0.1,207.4,207.25,28.82]
[1731249113558,0.1,207.39,207.25,28.82]
[1731249113967,0.1,207.4,207.25,33.624]
[1731249114480,4.8218,207.39,207.25,33.624]
[1731249114781,4.9218,207.39,207.23,20.0]
[1731249115480,4.8218,207.39,207.23,20.0]
[1731249115683,4.9218,207.39,207.23,24.804]
[1731249115988,0.1,207.23,207.16,8.27867039]
[1731249116284,0.1,207.23,207.04,28.82]
[1731249116285,0.92809852,207.23,207.04,28.82]
[1731249116862,0.92809852,207.23,207.02,28.82]
[1731249117261,0.1,207.19,206.99,51.209]
[1731249117663,4.9267,207.19,206.99,51.209]
[1731249118584,0.1,207.16,207.0,20.0]
[1731249118767,0.1,207.14,206.95,8.1035273]
[1731249118971,0.1,207.16,206.94,6.2484]
[1731249119178,4.9269,207.17,206.94,6.2484]
[1731249119179,4.8269,207.17,206.94,6.2484]
[1731249119387,0.1,207.16,206.94,6.2484]
[1731249119684,0.1,207.16,206.95,28.82]
[1731249119887,4.8269,207.17,206.95,28.82]
[1731249120089,0.1,207.18,206.97,0.1]
[1731249120262,0.82809852,207.23,207.0,0.1]
[1731249120465,5.65379852,207.23,206.98,0.1]
[1731249120675,5.65379852,207.23,207.05,28.82]
[1731249120864,5.65379852,207.23,207.08,20.0]
[1731249121370,0.82809852,207.23,207.08,48.82]
[1731249122387,0.1,207.27,207.08,48.82]
[1731249122585,0.1,207.27,207.07,48.82]
[1731249122786,0.1,207.25,207.07,48.82]
[1731249122986,4.8248,207.26,207.07,48.82]
[1731249123173,0.1,207.22,207.07,20.0]
[1731249123381,0.1,207.23,207.07,20.0]
[1731249123688,0.1,207.23,207.06,20.0]
[1731249124891,0.1,207.21,207.02,16.1406]
[1731249125595,0.1,207.19,207.02,16.1406]
[1731249125792,4.8271,207.16,206.98,28.82]
[1731249126893,4.8267,207.18,206.99,48.82]
[1731249128492,4.8261,207.21,206.99,48.82]
[1731249128790,4.8261,207.21,207.04,28.82]
[1731249128966,0.1,207.2,207.05,20.0]
[1731249129165,4.8261,207.21,207.05,20.0]
[1731249129370,4.8261,207.21,207.05,48.82]
[1731249129677,4.9251,207.25,207.05,48.82]
[1731249130080,4.8251,207.25,207.05,48.82]
[1731249130288,0.1,207.24,207.05,48.82]
[1731249130489,4.8251,207.25,207.05,48.82]
[1731249130679,4.8255,207.23,207.05,48.82]
[1731249131185,10.25232859,207.24,207.05,48.82]
[1731249131384,0.1,207.28,207.08,20.0]
[1731249131573,0.1,207.28,207.06,6.632]
[1731249131574,0.1,207.28,207.09,28.82]
[1731249131779,0.1,207.24,207.07,20.0]
[1731249132179,5.42692859,207.24,207.07,20.1]
[1731249132580,5.42692859,207.24,207.07,0.1]
[1731249132821,5.42692859,207.24,207.06,48.82]
[1731249132822,4.8255,207.23,207.09,0.1]
[1731249132971,4.8255,207.23,207.08,0.1]
[1731249134172,4.8255,207.23,207.1,0.1]
[1731249134875,0.1,207.26,207.1,0.1]
[1731249135189,4.9246,207.27,207.1,0.1]
[1731249135493,4.8246,207.27,207.12,0.1]
[1731249136400,36.1766,207.32,207.09,48.82]
[1731249136401,4.8236,207.31,207.14,0.1]
[1731249136698,4.8236,207.31,207.16,0.1]
[1731249136877,4.8236,207.31,207.09,48.82]
[1731249136878,4.8236,207.31,207.18,0.1]
[1731249137591,4.8225,207.36,207.21,0.1]
[1731249137972,0.1,207.39,207.21,0.1]
[1731249138295,4.822,207.38,207.21,0.1]
[1731249139489,0.1,207.37,207.21,0.1]
[1731249139716,4.822,207.38,207.21,0.1]
[1731249140391,16.8756,207.4,207.21,0.1]
[1731249141377,4.822,207.38,207.23,0.1]
[1731249141700,4.822,207.38,207.25,0.1]
[1731249142077,4.822,207.38,207.27,0.1]
[1731249142779,4.8206,207.44,207.27,0.1]
[1731249143195,0.1,207.42,207.27,0.1]
[1731249143401,4.8213,207.41,207.25,0.1]
[1731249143606,0.1,207.37,207.21,0.1]
[1731249145087,4.8225,207.36,207.19,0.1]
[1731249145281,4.8225,207.36,207.2,4.8262]
[1731249145482,0.1,207.33,207.2,4.8262]
[1731249145997,0.1,207.33,207.13,15.0151]
[1731249145998,0.1,207.29,207.13,15.1151]
[1731249146381,0.1,207.29,207.1,34.9413]
[1731249146382,0.1,207.29,207.11,0.1]
[1731249146986,0.1,207.31,207.11,0.1]
[1731249147294,4.8243,207.28,207.13,0.1]
[1731249147501,4.9243,207.28,207.13,0.1]
[1731249147886,4.9243,207.28,207.11,28.92]
[1731249148784,4.9243,207.28,207.14,0.1]
[1731249149301,4.9243,207.28,207.12,0.1]
[1731249149505,4.8243,207.28,207.12,0.1]
[1731249150002,0.1,207.25,207.1,4.8285]
[1731249150387,7.9680663,207.25,207.1,4.8285]
[1731249151203,4.8253,207.24,207.06,33.724]
[1731249151509,4.8253,207.24,207.06,24.904]
[1731249151975,14.35,207.33,207.06,24.904]
[1731249151976,4.8247,207.27,207.11,0.1]
[1731249152184,4.9247,207.27,207.07,0.1]
[1731249152379,24.9247,207.27,207.07,4.9292]
[1731249152705,0.1,207.25,207.07,4.8292]
[1731249152908,0.1,207.22,207.07,4.8292]
[1731249153395,0.1,207.22,207.05,4.804]
[1731249153396,4.826,207.21,207.06,4.8295]
[1731249154384,20.1,207.2,206.99,40.5878]
[1731249154588,20.1,207.2,207.01,12.0761]
[1731249154808,0.1,207.18,207.01,12.0761]
[1731249155404,4.8285,207.1,206.98,4.8313]
[1731249155786,4.8271,207.16,206.99,0.1]
[1731249155998,4.8271,207.16,206.99,28.92]
[1731249156997,4.8271,207.16,207.0,16.9081]
[1731249158189,4.8271,207.16,207.0,12.0772]
[1731249158389,4.8271,207.16,207.0,12.1772]
[1731249159305,4.8271,207.16,207.0,17.0081]
[1731249159515,4.826,207.21,207.05,0.1]
[1731249160285,16.891,207.21,207.02,20.1]
[1731249160499,16.891,207.21,207.04,0.1]
[1731249161016,0.1,207.32,207.12,0.1]
[1731249161223,4.8236,207.31,207.16,16.895]
[1731249161890,16.8828,207.31,207.16,12.0679]
[1731249162617,20.0,207.3,207.16,12.0679]
[1731249163295,16.8844,207.29,207.1,0.1]
[1731249163490,16.8844,207.29,207.11,4.8281]
[1731249163806,16.8844,207.29,207.06,32.13537345]
[1731249163807,0.1,207.21,207.06,12.0734]
[1731249165012,16.8918,207.2,207.06,12.0734]
[1731249165193,20.1,207.19,207.02,4.8304]
[1731249166403,20.0,207.17,207.01,12.0763]
[1731249168105,4.8271,207.16,207.01,12.0763]
[1731249169701,12.0668,207.18,207.01,12.1763]
[1731249170720,12.0668,207.18,207.01,17.0069]
[1731249171721,4.8264,207.19,207.03,0.1]
[1731249172100,4.8264,207.19,207.01,17.0069]
[1731249174302,20.0,207.18,207.01,17.0069]
[1731249174911,20.1,207.18,207.01,16.9069]
[1731249175227,20.1,207.18,207.01,12.0763]
[1731249175433,0.1,207.16,206.99,4.8309]
[1731249176310,16.8959,207.15,206.97,16.9106]
[1731249176704,20.0,207.14,206.97,14.9106]
[1731249177224,20.0,207.14,206.93,12.1813]
[1731249177225,0.1,207.12,206.93,12.1813]
[1731249177432,0.1,207.06,206.87,0.1]
[1731249177933,0.1,207.08,206.87,0.1]
[1731249178123,0.1,207.06,206.86,15.4107]
[1731249178424,0.1,207.04,206.88,16.9175]
[1731249178731,0.1,206.93,206.73,12.093]
[1731249178937,0.1,206.93,206.73,16.9302]
[1731249179333,0.1,206.85,206.59,0.1]
[1731249179506,0.1,206.88,206.59,0.1]
[1731249179830,0.1,206.9,206.61,0.1]
[1731249179831,0.1,206.86,206.61,0.1]
[1731249180214,0.1,206.78,206.58,17.01113502]
[1731249180409,4.8358,206.79,206.58,21.85183502]
[1731249180615,4.8358,206.79,206.58,15.9425]
[1731249180824,0.1,206.78,206.58,15.9425]
[1731249181208,24.8358,206.79,206.58,15.9425]
[1731249181523,4.8358,206.79,206.58,11.1018]
[1731249182105,4.8358,206.79,206.59,28.82]
[1731249182605,4.8358,206.79,206.6,12.1006]
[1731249183103,4.8358,206.79,206.6,40.9206]
[1731249183825,4.8358,206.79,206.6,45.7608]
[1731249184732,4.8358,206.79,206.6,45.691958]
[1731249185023,4.8348,206.83,206.62,28.82]
[1731249185235,4.8348,206.83,206.64,48.82]
[1731249185415,4.8348,206.83,206.64,28.82]
[1731249185602,4.8348,206.83,206.65,20.0]
[1731249186008,0.4,206.85,206.65,28.82]
[1731249186232,4.8342,206.86,206.68,48.82]
[1731249186928,4.833,206.91,206.68,48.82]
[1731249187129,4.833,206.91,206.7,28.82]
[1731249187310,4.933,206.91,206.7,28.82]
[1731249187506,24.933,206.91,206.7,28.82]
[1731249188315,24.933,206.91,206.71,16.9318]
[1731249188931,0.1,206.87,206.71,12.0942]
[1731249189126,0.1,206.87,206.58,0.1]
[1731249189127,0.1,206.85,206.58,8.00953903]
[1731249189433,0.1,206.85,206.54,15.9107]
[1731249189434,0.1,206.85,206.65,12.0973]
[1731249190234,4.8346,206.84,206.65,12.0973]
[1731249190728,0.1,206.83,206.65,12.0973]
[1731249191411,4.8351,206.82,206.65,12.0973]
[1731249192218,4.8351,206.82,206.65,11.5973]
[1731249192530,4.8346,206.84,206.65,11.5973]
[1731249193012,16.9212,206.84,206.65,11.5973]
[1731249193212,20.0,206.83,206.65,11.5973]
[1731249194328,20.0,206.81,206.65,11.5973]
[1731249195419,4.8355,206.8,206.65,11.5973]
[1731249196222,4.8355,206.8,206.65,40.4173]
[1731249196825,4.8341,206.86,206.65,40.4173]
[1731249197532,4.8341,206.86,206.65,45.2563]
[1731249198239,24.8341,206.86,206.65,45.2563]
[1731249198731,24.8341,206.86,206.65,69.4517]
[1731249199455,4.8341,206.86,206.65,69.4517]
[1731249200435,12.0849,206.87,206.65,69.4517]
[1731249200625,20.0,206.86,206.65,69.4517]
[1731249201348,4.8334,206.89,206.67,28.92]
[1731249202353,0.4,206.94,206.67,29.02]
[1731249202515,0.4,206.94,206.66,16.262]
[1731249202516,4.8325,206.93,206.72,0.1]
[1731249203118,0.4,206.94,206.75,0.1]
[1731249203332,5.2324,206.94,206.73,0.1]
[1731249204034,5.2304,207.02,206.78,28.82]
[1731249204241,5.2304,207.02,206.8,28.82]
[1731249204446,5.2304,207.02,206.83,28.82]
[1731249204619,5.2304,207.02,206.83,28.92]
[1731249205150,5.2304,207.02,206.83,28.82]
[1731249205821,5.2304,207.02,206.85,28.82]
[1731249206631,20.0,207.01,206.85,28.82]
[1731249206942,20.0,207.01,206.84,16.9212]
[1731249207441,5.3304,207.02,206.84,16.9212]
[1731249207818,0.1,207.0,206.84,12.0866]
[1731249208026,17.3065,207.02,206.84,12.0866]
[1731249209525,20.0,207.01,206.84,12.0866]
[1731249210612,4.8309,207.0,206.84,12.0866]
[1731249211020,20.0,206.99,206.84,12.0866]
[1731249211328,25.42692859,206.99,206.84,12.0866]
[1731249212041,4.8313,206.98,206.84,12.0866]
[1731249216036,20.0,206.97,206.8,16.9244]
[1731249217231,4.8318,206.96,206.76,28.82]
[1731249218247,16.9114,206.96,206.76,28.82]
[1731249218542,0.4,206.94,206.76,28.82]
[1731249218945,0.4,206.94,206.75,16.9285]
[1731249219131,16.9138,206.93,206.75,12.0918]
[1731249219541,20.0,206.92,206.75,12.0918]
[1731249219840,20.1,206.92,206.75,12.0918]
[1731249220049,20.0,206.92,206.75,12.0918]
[1731249221348,16.9155,206.91,206.73,24.1859]
[1731249221741,20.0,206.9,206.73,24.1859]
[1731249222345,4.8334,206.89,206.73,24.1859]
[1731249222655,0.4,206.94,206.73,53.0059]
[1731249222951,4.8325,206.93,206.73,53.1059]
[1731249223461,0.4,206.94,206.73,53.2059]
[1731249223631,5.231,207.0,206.77,28.82]
[1731249223939,5.231,207.0,206.77,28.92]
[1731249224140,5.231,207.0,206.77,28.82]
[1731249224531,5.231,207.0,206.79,28.82]
[1731249226331,5.231,207.0,206.81,28.82]
[1731249226529,5.231,207.0,206.81,33.624]
[1731249227538,0.4,207.0,206.81,28.82]
[1731249227733,5.231,207.0,206.81,28.82]
[1731249228558,5.231,207.0,206.82,45.7429]
[1731249228760,5.231,207.0,206.82,69.9185]
[1731249229250,5.231,207.0,206.82,45.7429]
[1731249230371,5.231,207.0,206.82,69.9185]
[1731249230938,4.8313,206.98,206.82,69.9185]
[1731249234146,4.8313,206.98,206.82,24.1756]
[1731249234460,20.4,206.97,206.77,16.9269]
[1731249235755,61.1706,206.96,206.72,12.093]
[1731249235968,61.0706,206.96,206.72,12.093]
[1731249236460,61.0706,206.96,206.73,28.82]
[1731249237032,61.0706,206.96,206.74,16.9293]
[1731249237449,85.2298,206.96,206.74,41.1142]
[1731249238659,85.3298,206.96,206.74,24.1849]
[1731249239054,85.2298,206.96,206.74,24.1849]
[1731249240132,65.2298,206.96,206.74,53.0049]
[1731249240342,41.0706,206.96,206.74,53.0049]
[1731249240664,16.9114,206.96,206.74,53.0049]
[1731249241563,20.0,206.95,206.74,53.0049]
[1731249241745,4.8323,206.94,206.74,69.9342]
[1731249244558,4.8318,206.96,206.76,28.82]